Cogmind - Beta 17.1 @@@ ROGUE MODE // 2026.08.27 @ 17:28:20 Player: 4R-ZE3 Result: Destroyed by TZ-XUI(R) with Subdweller Laser Performance ------------- Evolutions (0) 0 Regions Visited (2) 400 Robots Destroyed (18) 90 Value Destroyed (504) 504 Prototype IDs (1) 20 Alien Tech Used (0) 0 Bonus (5250) 5250 TOTAL SCORE: 6264 Bonus ------- Prayed to X0-1V1 5000 Major X0-1V1 Interference 250 Cogmind --------- Core Integrity 0/150 Matter 279/300 Energy 100/100 System Corruption 0% Temperature Cool (6) Movement Rolling (100) Location -10/Subcaves Parts ------- > --- POWER (1) -------- (None) > --- PROPULSION (2) --- Compact Wheel Compact Wheel > --- UTILITY (2) ------ Large Storage Unit X0-1V1's Piety Tracker > --- WEAPON (2) ------- Subdweller Machine Gun > --- INVENTORY (15) --- Light Treads Compact Wheel Subdweller Monowheel Subdweller Monowheel Heat Sink Improved Heat Sink Scrap Shield Small Laser Small Laser Small Laser Grenade Launcher Mining Claw Makeshift Axe Peak State ------------ > --- POWER ------------ Improved Ion Engine > --- PROPULSION ------- Compact Wheel Compact Wheel > --- UTILITY ---------- Large Storage Unit X0-1V1's Piety Tracker > --- WEAPON ----------- Battle Rifle Subdweller Machine Gun > --- INVENTORY -------- Light Treads Compact Wheel Subdweller Monowheel Subdweller Monowheel Heat Sink Improved Heat Sink Scrap Shield Small Laser Small Laser Small Laser Grenade Launcher Mining Claw Makeshift Axe [Rating: 24] Favorites ----------- Power Improved Ion Engine Engine Improved Ion Engine Propulsion Light Treads Treads Light Treads Wheel Compact Wheel Utility Light Armor Plating Device X0-1V1's Piety Tracker Storage Large Storage Unit Protection Light Armor Plating Weapon Light Assault Rifle Energy Gun Small Laser Ballistic Gun Light Assault Rifle Slashing Weapon Mining Claw Build | -11 -10 -10 ------- Run | Yrd Mat Sub Slots Evolved . | . . . Power . | . . . Propulsion . | . . . Utility . | . . . Weapon . | . . . Parts Attached 21 | 6 10 5 Power 3 | 1 2 . Engine 3 | 1 2 . Core . | . . . Reactor . | . . . Propulsion 4 | 2 1 1 Treads 2 | 2 . . Leg . | . . . Wheel 2 | . 1 1 Hover . | . . . Flight . | . . . Utility 6 | 1 3 2 Device 1 | . . 1 Storage 2 | 1 1 . Processor . | . . . Hackware . | . . . Protection 3 | . 2 1 Artifact . | . . . Weapon 8 | 2 4 2 Energy Gun 3 | 1 2 . Energy Cannon . | . . . Ballistic Gun 4 | 1 1 2 Ballistic Cannon . | . . . Launcher . | . . . Special Weapon . | . . . Impact Weapon . | . . . Slashing Weapon 1 | . 1 . Piercing Weapon . | . . . Special Melee Weapon . | . . . Unidentified Prototypes 1 | . . 1 Parts Lost 10 | . 6 4 Power 2 | . 1 1 Propulsion 2 | . 1 1 Utility 3 | . 1 2 Weapon 3 | . 3 . Highest Loss Streak 3 | . 3 2 To Critical Strikes . | . . . Average Backups 7 | 1 6 10 Power . | . 1 . Propulsion 2 | . 2 2 Utility 2 | . 1 3 Weapon 2 | . 2 4 Tool/Special . | . . . Unused Backups 12 | . 2 10 Power 2 | . 2 . Propulsion 4 | . . 4 Utility 3 | . . 3 Weapon 3 | . . 3 Tool/Special . | . . . Average Slot Usage (%) 93 | . 89 98 Engine 13 | . 12 14 Treads 15 | . 24 4 Wheel 12 | . 2 22 Device 1 | . . 2 Storage 14 | . 14 14 Protection 9 | . 7 11 Energy Gun 12 | . 10 14 Ballistic Gun 13 | . 16 10 Slashing Weapon 1 | . . 2 Peak Build Rating 24 | 6 10 24 Average Rating 9 | 4 6 13 On Entrance 5 | . 6 10 Avg Prop Armor Cover (%) 3 | . 6 2 Naked Turns . | . . . Heaviest Build 36 | 13 33 36 Greatest Support 40 | 40 40 32 Greatest Overweight (x) 2 | . 2 1 Average Overweight (x) . | . . . Largest Inventory Capacity 15 | 8 15 15 Average Capacity 12 | 7 10 15 Most Carried 15 | 3 9 15 Average Carried 8 | 1 6 11 Final Capacity 15 | 8 15 15 Final Carried 14 | 3 9 14 Class Distribution -------------------- 100% | Mutant Dominant Class ---------------- Mutant | -10/Materials Mutant | -10/Subcaves Resources | -11 -10 -10 ----------- Run | Yrd Mat Sub Matter Collected 579 | 173 270 136 Remotely . | . . . Salvage Created 604 | . 424 180 Parts 34 | . 26 8 Haulers Intercepted . | . . . Recyclers Shooed 1 | . 1 . Parts Field Recycled . | . . . Retrieved Matter . | . . . Parts Self-Destructed 13 | . . 13 Prevented . | . . . Parts Restored . | . . . Kills | -11 -10 -10 ------- Run | Yrd Mat Sub Combat Hostiles Destroyed 18 | . 14 4 Guns 18 | . 14 4 Classes Destroyed 4 | . 2 2 Swarmer 6 | . 6 . Grunt 9 | . 8 1 Sentry 1 | . . 1 Subdweller 2 | . . 2 Best Kill Streak 5 | . 5 2 Combat Bots Only 5 | . 5 2 Max Kills in Single Turn 2 | . 2 1 Gunslinging 1 | . 1 . Exploded . | . . . Melee . | . . . Uniques/NPCs Destroyed . | . . . Combat | -11 -10 -10 -------- Run | Yrd Mat Sub Hostile Shots Fired 135 | . 106 29 Missed 39 | . 36 3 Hits 96 | . 70 26 Projectile 96 | . 70 26 Critical Strikes 1 | . . 1 Damage Taken 1303 | . 763 540 Core 254 | . 89 165 Absorbed by Shields . | . . . Ignored by Resistances 46 | . . 46 Core Remaining (%) 100 | 100 . . Volleys Fired 69 | . 52 17 Largest 2 | . 2 2 Hottest 80 | . 70 80 Shots Fired 133 | . 99 34 Gun 133 | . 99 34 Cannon . | . . . Launcher . | . . . Special . | . . . Kinetic 72 | . 60 12 Thermal 61 | . 39 22 Explosive . | . . . Electromagnetic . | . . . Robot Hit Streak 25 | . 9 25 Robot Miss Streak 5 | . 5 1 Penetration Max . | . . . Secondary Targets 1 | . 1 . Max Gunslinging Chain 1 | . 1 . Shots Hit Robots 99 | . 68 31 Core Hits 37 | . 29 8 Critical Kills 1 | . . 1 Critical Parts Destroyed . | . . . Critical Strikes 3 | . 2 1 Burn 2 | . 2 . Destroy 1 | . . 1 Melee Attacks 6 | . 3 3 Impact . | . . . Slashing 6 | . 3 3 Piercing . | . . . Sneak Attacks . | . . . Combat Hostiles . | . . . Follow-up Attacks . | . . . Damage Inflicted 1043 | . 682 361 Guns 1043 | . 682 361 Cannons . | . . . Explosions . | . . . Melee . | . . . Ramming . | . . . Kinetic 431 | . 311 120 Thermal 612 | . 371 241 Explosive . | . . . Electromagnetic . | . . . Impact . | . . . Slashing . | . . . Piercing . | . . . Highest Corruption . | . . . Average Corruption . | . . . Corruption Purged . | . . . Corruption Blocked . | . . . Overload Shots . | . . . Overflow Damage . | . . . Projectiles . | . . . Explosions . | . . . Melee . | . . . Knockbacks . | . . . Impact . | . . . Kinetic . | . . . Secondary . | . . . Self-Inflicted Damage . | . . . Shots . | . . . Rammed . | . . . Targets Rammed . | . . . Kicked . | . . . Crushed . | . . . Highest Temperature 337 | . 337 . Average Temperature 77 | . 77 . Received Heat Transfer 348 | . 297 51 Siege Activations . | . . . Martial Activations . | . . . Shielding Activations . | . . . Robots Disrupted . | . . . Combat Hostiles . | . . . Robots Corrupted . | . . . Combat Hostiles . | . . . Parts Fried . | . . . Impact Corruptions . | . . . Robots Melted . | . . . Combat Hostiles . | . . . Parts Melted 2 | . 1 1 Heat Transferred 1784 | . 1234 550 Parts Sabotaged . | . . . Parts Stolen . | . . . Parts Stripped . | . . . Power Chain Reactions . | . . . Alert | -11 -10 -10 ------- Run | Yrd Mat Sub Maximum Alert Level 1 | . 1 . Low Security (%) 95 | 100 94 . Level 1 4 | . 5 . Level 2 . | . . . Level 3 . | . . . Level 4 . | . . . Level 5 . | . . . High Security . | . . . Max Security . | . . . Peak Influence 214 | . 214 . Initial . | . . . Average 101 | . 116 . Influence Increases 507 | . 467 40 Destroy 0b10 Robot/C 320 | . 280 40 Destroy Leader 60 | . 60 . Successful Hack 7 | . 7 . Select Force Hacks 60 | . 60 . Lose Combat Pursuer 60 | . 60 . Influence Decreases 507 | . 327 180 Entered New Map 68 | . . 68 Time Decay 379 | . 267 112 Lost Part 60 | . 60 . Squads Dispatched 3 | . 3 . Investigation 2 | . 2 . Extermination . | . . . Reinforcement 1 | . 1 . Assault . | . . . Garrison . | . . . Intercept . | . . . Searches Triggered . | . . . Construction Impeded . | . . . Haulers Reinforced . | . . . Active Scanning Responses . | . . . Cargo Convoy Interrupts . | . . . Stealth | -11 -10 -10 --------- Run | Yrd Mat Sub Distress Signals 3 | . 3 . Communications Jammed . | . . . Distress Signals . | . . . Times Spotted 29 | . 23 6 Peak Tracking Total 6 | . 6 2 Tactical Retreats 1 | . 1 . Traps | -11 -10 -10 ------- Run | Yrd Mat Sub Traps Triggered 5 | . 3 2 Indirectly . | . . . Trap Hack Attempts . | . . . Triggered . | . . . Disarmed . | . . . Reprogrammed . | . . . Reused . | . . . Traps Extracted . | . . . Installed . | . . . Triggered . | . . . Machines | -11 -10 -10 ---------- Run | Yrd Mat Sub Machines Disabled . | . . . Max in Single Turn . | . . . Machines Repaired . | . . . Machines Dismantled . | . . . Machines Sabotaged . | . . . Overloaded Fab Kills . | . . . Hacking | -11 -10 -10 --------- Run | Yrd Mat Sub Machines Accessed 4 | . 3 1 Terminals 1 | . 1 . Fabricators . | . . . Repair Stations . | . . . Recycling Units 2 | . 2 . Scanalyzers . | . . . Garrison Access . | . . . Total Hacks 12 | . 7 5 Successful 9 | . 4 5 Failed 3 | . 3 . Catastrophic . | . . . Database Lockouts . | . . . Manual 8 | . 8 . Terminals 4 | . 4 . Fabricators . | . . . Repair Stations . | . . . Recycling Units 3 | . 3 . Scanalyzers . | . . . Garrison Access . | . . . Terminal Hacks 6 | . 1 5 Record 5 | . . 5 Recycling Unit Index 1 | . 1 . Fabricator Hacks . | . . . Repair Station Hacks . | . . . Recycling Unit Hacks . | . . . Scanalyzer . | . . . Garrison Access Hacks . | . . . Unauthorized Hacks 3 | . 3 . Terminals 1 | . 1 . Botnet 1 | . 1 . Fabricators . | . . . Repair Stations . | . . . Recycling Units 2 | . 2 . Tunnel 2 | . 2 . Scanalyzers . | . . . Garrison Access . | . . . Data Cores Recovered . | . . . Used . | . . . Hacking Detections 1 | . 1 . Full Trace Events . | . . . Feedback Events . | . . . Feedback Blocked . | . . . Robot Schematics Acquired . | . . . Robots Built . | . . . Authchips . | . . . Time . | . . . Total Robot Build Rating . | . . . Part Schematics Acquired . | . . . Parts Built . | . . . Authchips . | . . . Time . | . . . Total Part Build Rating . | . . . Part Studies Acquired . | . . . Parts Repaired . | . . . Time . | . . . Parts Recycled . | . . . Recycled Matter . | . . . Retrieved Matter . | . . . Retrieved Components . | . . . Parts Scanalyzed . | . . . Part Schematics Acquired . | . . . Parts Damaged . | . . . Bothacking | -11 -10 -10 ------------ Run | Yrd Mat Sub Used RIF Installer . | . . . Robots Hacked . | . . . Non-combat . | . . . Combat . | . . . Robot Hacks Applied . | . . . Relay Couplers Released . | . . . Fabnet Peak Effective % . | . . . Robots Rewired . | . . . Allies Hacked . | . . . Hacks Repelled . | . . . Allies | -11 -10 -10 -------- Run | Yrd Mat Sub Total Allies . | . . . Largest Group . | . . . Highest-Rated Group . | . . . Highest-Rated Ally . | . . . Total Orders . | . . . Ally Attacks . | . . . Total Damage . | . . . Kills . | . . . Allies Corrupted . | . . . Allies Melted . | . . . X0-1V1 Amusement Gains 8 | . 8 . Average Entertainment 3 | . 8 3 Good Acts 2 | . 1 1 Bad Acts 3 | . . 3 Intel | -11 -10 -10 ------- Run | Yrd Mat Sub Active Infowar (turns) . | . . . Robot Analysis Total . | . . . Derelict Logs Recovered 1 | . . 1 Drone Launches . | . . . Drone Recoveries . | . . . Exploration | -11 -10 -10 ------------- Run | Yrd Mat Sub Turns Passed 1352 | 99 688 565 Spaces Moved 696 | 56 293 347 Core 8 | 5 3 . Treads 387 | 51 271 65 Legs . | . . . Wheels 301 | . 19 282 Hover . | . . . Flight . | . . . Fastest Speed 50 | 50 100 100 Average Speed 150 | 150 167 136 Slowest Speed 240 | 160 240 240 Overloaded Moves . | . . . Propulsion Burnouts . | . . . Robots Hopped . | . . . Potential Cave-ins . | . . . Cave-ins Triggered . | . . . Exploration Rate (%) 34 | 3 62 38 Regions Visited 2 Branch Regions 1 Pre-discovered Areas 3 | . 2 1 Known Exits Taken . | . . . Unknown Exits Taken 2 | 1 1 . Scrap Searched . | . . . Spaces Dug . | . . . Terrain Destroyed . | . . . Melee . | . . . Projectile . | . . . AOE . | . . . Terrain Rammed . | . . . Walls Destroyed . | . . . Machines Disabled . | . . . Actions | -11 -10 -10 --------- Run | Yrd Mat Sub Total 856 | 68 396 392 Wait 25 | 4 15 6 Move 694 | 55 292 347 Hop . | . . . Pick Up 22 | 3 12 7 Fast Attach 15 | 6 9 . Attach 8 | . 5 3 Detach 1 | . 1 . Swap 12 | . 3 9 Drop 4 | . 4 . Fire 69 | . 52 17 Melee 6 | . 3 3 Ram . | . . . Kick . | . . . Crush . | . . . Escape Stasis . | . . . Rewire . | . . . Trap . | . . . Miscellaneous . | . . . Route ------- -11/Scrapyard -10/Materials (discovered 4 exits: [*Mat x2] / [*Min] / *Sub) -10/Subcaves (discovered 3 exits: Mat x2 / Rec) History --------- Turn | Location | Event 13 | -11/Scrapyard | Discovered new exit (range 14) 100 | -11/Scrapyard | Entered Materials 315 | -10/Materials | Build established: Mutant 468 | -10/Materials | Discovered new exit (range 4) 542 | -10/Materials | Discovered new exit (range 12) 647 | -10/Materials | Lost 3 parts (1n1u1w) 660 | -10/Materials | Discovered new exit (range 14) 718 | -10/Materials | Lost 3 parts (1p2w) 767 | -10/Materials | Prayed at D.C.S.S. Altar Unit 780 | -10/Materials | KI resistance permanently improved by X0-1V1 (+10%; -100 max core) 783 | -10/Materials | Discovered new exit (range 3) 788 | -10/Materials | Entered Subcaves 789 | -10/Subcaves | Approached by a straggling Scientist 912 | -10/Subcaves | Visited Clippyterm 920 | -10/Subcaves | Identified exit to Materials 920 | -10/Subcaves | Identified exit to Recycling 920 | -10/Subcaves | Learned location of Deep Caves (-7) 1125 | -10/Subcaves | Shifting Twisted Machinery released Battle Rifle 1189 | -10/Subcaves | A swath of the cavern ceiling suddenly collapsed 1211 | -10/Subcaves | Shifting Twisted Machinery released Mak. Axe 1227 | -10/Subcaves | Shifting Twisted Machinery released Sub. Machine Gun 1236 | -10/Subcaves | Core integrity fell below 50% 1328 | -10/Subcaves | Core integrity fell below 20% 1353 | -10/Subcaves | Destroyed by TZ-XUI(R) with Subdweller Laser Last Messages --------------- 01250_ Ion Engine fries itself beyond repair. IFF burst signal emitted. 01256_ X0-1V1: "Don't be shy now." 01286_ UV-OPL(u) tweaks Twisted Machinery. OM-63C(c): "I think it's somewhere northeast of here" 01327_ Triggered Piercing Trap. 01327_ Spikes shoot up from the floor. 01327_ Critical hit (Impale). 01333_ Triggered Piercing Trap. 01333_ Spikes shoot up from the floor. 01333_ Critical hit (Impale). OM-63C(c): "I think it's somewhere north of here" 01351_ X0-1V1: "I know that drunk sailor look when I see it." 01351_ Imp. Ion Engine destroyed. 01352_ X0-1V1: "And it's a trip and a fumble!" 01352_ Battle Rifle tossed aside. 01353_ X0-1V1 snickers! Map ----- +----------------------------------------------------+ | ?????????????????????????????????????????????????? | | ?????????????????????????????????????????????????? | | ?????????????????????????????????????????????????? | | ?????????????????????????????????????????????????? | | ?????????????????????????????????????????????????? | | ?????????????????????????????????????????????????? | | ?????????????????????????????????????????????????? | | ?????????????????????????????????????????????????? | | ?????????????????????????????????????????????????? | | ?????????????????????????????????????????????????? | | ?????????????????????????????????????????????????? | | ?????????????????????????????????????????????????? | | ?????????????????????????????????????????????????? | | ?????????????????????????????????????????????????? | | ?????????????????????????????????????????????????? | | ?????????????????????????????????????????????????? | | ?????????????????????????????????????????????????? | | ?????????????????????????????????????????????????? | | ?????????????????????????????????????????????????? | | ?????????????????????????????????????????????????? | | ?????????????????????????????????????????????????? | | ?????????????????????????????????????????????????? | | #???????????????#########????###""#??????????????? | | ###????????####?# ## #### "#??????????????? | | #######?## #### c""" R "" ""????????????????? | | # ### ""@R"" """???????????????? | | ## ### """""""????????????????? | | # #?#### " ?????????????????? | | ### ## # ## #?????# ????????????????? | | #?#### #########??????## "#???????????????? | | # # #????????????????#"""????????????????? | | ^#????????????????#""????????????????? | | ??????????????????????????????????? | | # ## ^ ?????????????????????????????????? | | ###### ???????????????????????????????? | | #???# ## ## ??????????????????????????????? | | #??#####?##? ??????????????????????????????? | | #?????????? #??????????????????????????????? | | ??????????##??????????????????????????????? | | #####?????????????????????????????????????????? | | ####?????????????????????????????????????????????? | | ?????????????????????????????????????????????????? | | ?????????????????????????????????????????????????? | | ?????????????????????????????????????????????????? | | ?????????????????????????????????????????????????? | | ?????????????????????????????????????????????????? | | ?????????????????????????????????????????????????? | | ?????????????????????????????????????????????????? | | ?????????????????????????????????????????????????? | | ?????????????????????????????????????????????????? | +----------------------------------------------------+ Best States ------------- Heat Dissipation 25 Energy Generation 12 Energy Capacity 265 Matter Stores 300 Matter Capacity 300 Sight Range 16 Terrain Scan Density 10 Armor Coverage 150 Resistance: KI 10 Evasion (%) 40 Recoil Reduction 2 Item Schematics ----------------- None Robot Schematics ------------------ None Fabricated ------------ Nothing Repaired ---------- Nothing Studied --------- None Alien Tech Used ----------------- None Achievements -------------- None Challenges ------------ None Game ------ Seed AnalysisSlugDecompositor Manual? 0 Play Time 00:10:27 Cumulative 303.1 hours Start 2026.08.27 @ 17:17:54 End 2026.08.27 @ 17:28:20 Sessions 1 Manual Loads 0 Difficulty Rogue Special Mode None Game No. 288 Rogue 234 Adventurer 54 Explorer 0 Win Type - Total 12 Types 8/0/1/1/0/0/0/1/0/1 Lore% 77 Gallery% 66 Achievement% 61 Wizard Run 0 Options --------- Layout 1 ASCII 0 Keyboard 0 Movement Mouse Keybinds 1 Fullscreen 2 Font 32/Tamsyn Map View 50x35 Zoom Use 0% Tactical HUD 1 Map Filters NONE Filters NONE Steam 1 RUN: d77b26a3-98fe-4c1b-85a7-a9b5bee338eb